fUST/lending_fUST_20240727
["ID","MTS","AMOUNT","RATE_DAILY","PERIOD"]
[333385792,1722089443114,-151.0,0.00013698,2]
[333385794,1722089443125,-151.0,0.00013698,2]
[333385796,1722089443134,-151.0,0.00013698,2]
[333385798,1722089443144,-1230.051893,0.00013698,2]
[333385800,1722089443154,-1230.051893,0.00013698,2]
[333385802,1722089443168,-1230.051893,0.00013698,2]
[333385804,1722089443178,-151.0,0.00013698,2]
[333385806,1722089443188,-237.614368,0.00013698,2]
[333385808,1722089443199,-151.0,0.00013698,2]
[333385810,1722089443208,-151.0,0.00013698,2]
[333385812,1722089443218,-1230.051893,0.00013698,2]
[333385814,1722089443228,-1230.051893,0.00013698,2]
[333385816,1722089443239,-151.0,0.00013698,2]
[333385817,1722089443249,-1230.051893,0.00013698,2]
[333385818,1722089443261,-151.0,0.00013698,2]
[333385820,1722089443270,-404.57924825,0.00013698,2]
[333385821,1722089443279,-500.0,0.00013698,2]
[333385822,1722089443288,-500.0,0.00013698,2]
[333385827,1722089443424,-151.0,0.00013698,2]
[333385828,1722089443439,-151.0,0.00013698,2]
[333385829,1722089443448,-151.0,0.00013698,2]
[333385830,1722089443460,-500.0,0.00013698,2]
[333385831,1722089443470,-500.0,0.00013698,2]
[333385832,1722089443479,-152.15397,0.00013698,2]
[333385833,1722089443489,-500.0,0.00013698,2]
[333385834,1722089443499,-500.0,0.00013698,2]
[333385835,1722089443511,-192.778072,0.00013698,2]
[333385836,1722089443521,-192.778072,0.00013698,2]
[333385837,1722089443532,-192.778072,0.00013698,2]
[333385838,1722089443542,-398.30343477,0.00013698,2]
[333385842,1722089444861,-101.69656523,0.00013698,2]
[333385843,1722089444871,-192.778072,0.00013698,2]
[333385844,1722089444881,-192.778072,0.00013698,2]
[333385845,1722089444891,-192.778072,0.00013698,2]
[333385846,1722089444901,-500.0,0.00013698,2]
[333385847,1722089444911,-252.417658,0.00013698,2]
[333385848,1722089444922,-252.417658,0.00013698,2]
[333385849,1722089444931,-252.417658,0.00013698,2]
[333385850,1722089444941,-252.417658,0.00013698,2]
[333385851,1722089444951,-252.417658,0.00013698,2]
[333385852,1722089444960,-252.417658,0.00013698,2]
[333385853,1722089444970,-500.0,0.00013698,2]
[333385854,1722089444980,-500.0,0.00013698,2]
[333385855,1722089444990,-916.677967,0.00013698,2]
[333385856,1722089445000,-916.677967,0.00013698,2]
[333385857,1722089445010,-500.0,0.00013698,2]
[333385858,1722089445019,-916.677967,0.00013698,2]
[333385859,1722089445029,-916.677967,0.00013698,2]
[333385860,1722089445039,-916.677967,0.00013698,2]
[333385861,1722089445049,-916.677967,0.00013698,2]
[333385862,1722089445058,-500.0,0.00013698,2]
[333385863,1722089445068,-500.0,0.00013698,2]
[333385864,1722089445078,-916.22,0.00013698,2]
[333385865,1722089445088,-500.0,0.00013698,2]
[333385866,1722089445098,-500.0,0.00013698,2]
[333385867,1722089445108,-500.0,0.00013698,2]
[333385868,1722089445118,-500.0,0.00013698,2]
[333385869,1722089445128,-500.0,0.00013698,2]
[333385870,1722089445137,-500.0,0.00013698,2]
[333385871,1722089445147,-500.0,0.00013698,2]
[333385872,1722089445157,-730.73,0.00013698,2]
[333385873,1722089445167,-500.0,0.00013698,2]
[333385874,1722089445177,-515.00000001,0.00013698,2]
[333385875,1722089445188,-382.96,0.00013698,2]
[333385876,1722089445198,-500.0,0.00013698,2]
[333385877,1722089445207,-500.0,0.00013698,2]
[333385878,1722089445217,-500.0,0.00013698,2]
[333385879,1722089445226,-756.9,0.00013698,2]
[333385880,1722089445236,-500.0,0.00013698,2]
[333385881,1722089445245,-500.0,0.00013698,2]
[333385882,1722089445256,-500.0,0.00013698,2]
[333385883,1722089445266,-3522.35,0.00013698,2]
[333385884,1722089445276,-500.0,0.00013698,2]
[333385885,1722089445286,-1541.2,0.00013698,2]
[333385886,1722089445296,-500.0,0.00013698,2]
[333385887,1722089445306,-500.0,0.00013698,2]
[333385888,1722089445315,-500.0,0.00013698,2]
[333385889,1722089445325,-500.0,0.00013698,2]
[333385890,1722089445335,-500.0,0.00013698,2]
[333385891,1722089445345,-500.0,0.00013698,2]
[333385892,1722089445355,-500.0,0.00013698,2]
[333385893,1722089445364,-500.0,0.00013698,2]
[333385894,1722089445374,-500.0,0.00013698,2]
[333385895,1722089445384,-500.0,0.00013698,2]
[333385896,1722089445394,-515.24,0.00013698,2]
[333385897,1722089445404,-500.0,0.00013698,2]
[333385898,1722089445414,-500.0,0.00013698,2]
[333385899,1722089445423,-500.0,0.00013698,2]
[333385900,1722089445433,-500.0,0.00013698,2]
[333385901,1722089445443,-500.0,0.00013698,2]
[333385902,1722089445454,-500.0,0.00013698,2]
[333385903,1722089445464,-500.0,0.00013698,2]
[333385904,1722089445474,-1181.54,0.00013698,2]
[333385905,1722089445484,-500.0,0.00013698,2]
[333385906,1722089445494,-500.0,0.00013698,2]
[333385907,1722089445504,-500.0,0.00013698,2]
[333385908,1722089445514,-500.0,0.00013698,2]
[333385909,1722089445523,-503.92257116,0.00013698,2]
[333385910,1722089445533,-500.0,0.00013698,2]
[333385911,1722089445542,-303.95416911,0.00013698,2]
[333385912,1722089445552,-6679.63,0.00013698,2]
[333385913,1722089445563,-500.0,0.00013698,2]
[333385914,1722089445572,-500.0,0.00013698,2]
[333385915,1722089445581,-500.0,0.00013698,2]
[333385916,1722089445591,-500.0,0.00013698,2]
[333385917,1722089445600,-500.0,0.00013698,2]
[333385918,1722089445609,-510.35524229,0.00013698,2]
[333385919,1722089445619,-500.0,0.00013698,2]
[333385920,1722089445629,-500.0,0.00013698,2]
[333385921,1722089445640,-931.58,0.00013698,2]
[333385922,1722089445651,-500.0,0.00013698,2]
[333385923,1722089445661,-2709.73,0.00013698,2]
[333385924,1722089445670,-597.27,0.00013698,2]
[333385925,1722089445679,-500.0,0.00013698,2]
[333385926,1722089445689,-508.51697942,0.00013698,2]
[333385927,1722089445699,-1834.98,0.00013698,2]
[333385928,1722089445709,-500.0,0.00013698,2]
[333385929,1722089445718,-500.0,0.00013698,2]
[333385930,1722089445727,-1170.68,0.00013698,2]
[333385931,1722089445736,-500.0,0.00013698,2]
[333385932,1722089445746,-604.31,0.00013698,2]
[333385933,1722089445758,-854.923058,0.00013698,2]
[333385934,1722089445768,-854.923058,0.00013698,2]
[333385935,1722089445777,-854.923058,0.00013698,2]
[333385936,1722089445786,-500.0,0.00013698,2]
[333385937,1722089445796,-854.923058,0.00013698,2]
[333385938,1722089445805,-854.923058,0.00013698,2]
[333385939,1722089445814,-854.923058,0.00013698,2]
[333385940,1722089445824,-854.923058,0.00013698,2]
[333385941,1722089445833,-500.0,0.00013698,2]
[333385942,1722089445843,-854.923058,0.00013698,2]
[333385943,1722089445851,-500.0,0.00013698,2]
[333385944,1722089445861,-500.0,0.00013698,2]
[333385945,1722089445872,-1120.04,0.00013698,2]
[333385946,1722089445881,-693.26,0.00013698,2]
[333385947,1722089445890,-500.0,0.00013698,2]
[333385948,1722089445899,-500.0,0.00013698,2]
[333385949,1722089445909,-500.0,0.00013698,2]
[333385950,1722089445918,-500.0,0.00013698,2]
[333385951,1722089445928,-620.738382,0.00013698,2]
[333385952,1722089445937,-620.738382,0.00013698,2]
[333385953,1722089445947,-620.738382,0.00013698,2]
[333385954,1722089445956,-620.738382,0.00013698,2]
[333385955,1722089445965,-500.0,0.00013698,2]
[333385956,1722089445975,-620.738382,0.00013698,2]
[333385957,1722089445984,-500.0,0.00013698,2]
[333385958,1722089445993,-620.738382,0.00013698,2]
[333385959,1722089446003,-620.738382,0.00013698,2]
[333385960,1722089446012,-620.738382,0.00013698,2]
[333385961,1722089446021,-500.0,0.00013698,2]
[333385962,1722089446031,-249.18700094,0.00013698,2]
[333385963,1722089446040,-500.0,0.00013698,2]
[333385965,1722089446049,-151.0,0.00013698,2]
[333385966,1722089446060,-151.0,0.00013698,2]
[333385967,1722089446070,-151.865586,0.00013698,2]
[333385968,1722089446079,-500.0,0.00013698,2]
[333385969,1722089446089,-1306.82,0.00013698,2]
[333385970,1722089446100,-824.01,0.00013698,2]
[333385971,1722089446109,-500.0,0.00013698,2]
[333385972,1722089446118,-151.0,0.00013698,2]
[333385973,1722089446127,-151.0,0.00013698,2]
[333385974,1722089446136,-151.0,0.00013698,2]
[333385975,1722089446146,-151.0,0.00013698,2]
[333385976,1722089446155,-500.0,0.00013698,2]
[333385977,1722089446165,-1014.86,0.00013698,2]
[333385978,1722089446176,-547.72,0.00013698,2]
[333385979,1722089446187,-500.0,0.00013698,2]
[333385980,1722089446196,-4324.32,0.00013698,2]
[333385981,1722089446205,-432.79895704,0.00013698,2]
[333385982,1722089446215,-500.0,0.00013698,2]
[333385983,1722089446225,-771.61,0.00013698,2]
[333385984,1722089446235,-500.0,0.00013698,2]
[333385985,1722089446244,-522.84,0.00013698,2]
[333385986,1722089446257,-170.166084,0.00013698,2]
[333385987,1722089446266,-170.166084,0.00013698,2]
[333385988,1722089446276,-170.166084,0.00013698,2]
[333385990,1722089446285,-170.166084,0.00013698,2]
[333385991,1722089446295,-170.166084,0.00013698,2]
[333385992,1722089446304,-170.166084,0.00013698,2]
[333385993,1722089446317,-170.166084,0.00013698,2]
[333385994,1722089446328,-170.166084,0.00013698,2]
[333385995,1722089446339,-633.2818664,0.00013698,2]
[333385996,1722089446349,-1769.43,0.00013698,2]
[333385997,1722089446360,-500.0,0.00013698,2]
[333385998,1722089446370,-833.16,0.00013698,2]
[333385999,1722089446381,-500.0,0.00013698,2]
[333386000,1722089446390,-500.0,0.00013698,2]
[333386001,1722089446400,-2509.77,0.00013698,2]
[333386002,1722089446409,-151.0,0.00013698,2]
[333386003,1722089446419,-573.24,0.00013698,2]
[333386004,1722089446429,-203.18865096,0.00013698,2]
[333386005,1722089446439,-871.56,0.00013698,2]
[333386006,1722089446448,-904.27,0.00013698,2]
[333386007,1722089446458,-500.0,0.00013698,2]
[333386008,1722089446468,-605.45,0.00013698,2]
[333386009,1722089446478,-252.239917,0.00013698,2]
[333386010,1722089446487,-252.239917,0.00013698,2]
[333386011,1722089446497,-252.239917,0.00013698,2]
[333386012,1722089446508,-500.0,0.00013698,2]
[333386013,1722089446517,-252.239917,0.00013698,2]
[333386014,1722089446527,-252.239917,0.00013698,2]
[333386015,1722089446537,-252.239917,0.00013698,2]
[333386016,1722089446547,-151.0,0.00013698,2]
[333386017,1722089446558,-211.516715,0.00013698,2]
[333386018,1722089446568,-211.516715,0.00013698,2]
[333386019,1722089446577,-151.0,0.00013698,2]
[333386020,1722089446587,-211.516715,0.00013698,2]
[333386021,1722089446597,-500.0,0.00013698,2]
[333386022,1722089446607,-500.0,0.00013698,2]
[333386023,1722089446616,-927.4,0.00013698,2]
[333386024,1722089446627,-211.516715,0.00013698,2]
[333386025,1722089446638,-211.516715,0.00013698,2]
[333386026,1722089446649,-211.516715,0.00013698,2]
[333386027,1722089446660,-1300.19,0.00013698,2]
[333386028,1722089446670,-500.0,0.00013698,2]
[333386029,1722089446679,-602.59,0.00013698,2]
[333386030,1722089446689,-1216.72,0.00013698,2]
[333386031,1722089446698,-151.0,0.00013698,2]
[333386032,1722089446708,-151.0,0.00013698,2]
[333386033,1722089446717,-151.0,0.00013698,2]
[333386034,1722089446726,-883.86,0.00013698,2]
[333386035,1722089446735,-1051.51,0.00013698,2]
[333386036,1722089446745,-2242.44,0.00013698,2]
[333386037,1722089446756,-1807.33,0.00013698,2]
[333386038,1722089446766,-209.215173,0.00013698,2]
[333386039,1722089446775,-500.0,0.00013698,2]
[333386040,1722089446784,-1167.49,0.00013698,2]
[333386041,1722089446793,-500.0,0.00013698,2]
[333386042,1722089446832,-272.02683,0.00013698,2]
[333386043,1722089446842,-272.02683,0.00013698,2]
[333386044,1722089446851,-272.02683,0.00013698,2]
[333386045,1722089446860,-500.0,0.00013698,2]
[333386046,1722089446870,-151.0,0.00013698,2]
[333386047,1722089446879,-151.0,0.00013698,2]
[333386048,1722089446889,-500.0,0.00013698,2]
[333386049,1722089446898,-272.02683,0.00013698,2]
[333386050,1722089446908,-272.02683,0.00013698,2]
[333386051,1722089446918,-272.02683,0.00013698,2]
[333386052,1722089446928,-500.0,0.00013698,2]
[333386053,1722089446937,-500.0,0.00013698,2]
[333386054,1722089446947,-500.0,0.00013698,2]
[333386055,1722089446956,-500.0,0.00013698,2]
[333386056,1722089446966,-224.78352115,0.00013698,2]
[333386058,1722089446976,-500.0,0.00013698,2]
[333386060,1722089446987,-500.0,0.00013698,2]
[333386062,1722089446997,-500.0,0.00013698,2]
[333386064,1722089447009,-500.0,0.00013698,2]
[333386066,1722089447019,-500.0,0.00013698,2]
[333386068,1722089447029,-500.0,0.00013698,2]
[333386070,1722089447039,-523.05655118,0.00013698,2]
[333386072,1722089447050,-151.0,0.00013698,2]
[333386074,1722089447059,-151.0,0.00013698,2]
[333386076,1722089447069,-151.0,0.00013698,2]
[333386078,1722089447079,-350.0,0.00013699,2]
[333386079,1722089447088,-151.0,0.00013699,2]
[333386080,1722089447098,-151.0,0.00013699,2]
[333386081,1722089447107,-151.0,0.00013699,2]
[333386082,1722089447116,-151.0,0.00013699,2]
[333386083,1722089447126,-167.9913703,0.00013699,2]
[333386084,1722089447136,-413.5429716,0.00013699,2]
[333386085,1722089447145,-153.0,0.00013699,2]
[333386086,1722089447155,-150.112233,0.000137,2]
[333386087,1722089447165,-150.112233,0.000137,2]
[333386088,1722089447174,-150.112233,0.000137,2]
[333386089,1722089447186,-916.677967,0.00013713,2]
[333386090,1722089447196,-916.677967,0.00013713,2]
[333386091,1722089447206,-500.0,0.00013729,2]
[333386092,1722089447216,-151.0,0.0001373,2]
[333386093,1722089447226,-151.0,0.0001373,2]
[333386094,1722089447235,-151.0,0.00013742,2]
[333386095,1722089447244,-2284.5928121,0.00013742,2]
[333386097,1722089447256,-153.825328,0.00013752,2]
[333386098,1722089447266,-153.825328,0.00013752,2]
[333386100,1722089447275,-151.0,0.00013752,2]
[333386102,1722089447285,-151.0,0.00013752,2]
[333386104,1722089447295,-151.0,0.00013752,2]
[333386106,1722089447305,-151.0,0.00013752,2]
[333386107,1722089447315,-272.920437,0.00013752,2]
[333386109,1722089447324,-151.0,0.00013752,2]
[333386110,1722089447334,-151.0,0.00013752,2]
[333386112,1722089447344,-593.31725,0.00013752,2]
[333386113,1722089447354,-151.0,0.00013752,2]
[333386115,1722089447363,-151.0,0.00013752,2]
[333386117,1722089447373,-1230.051893,0.00013752,2]
[333386119,1722089447382,-151.0,0.00013752,2]
[333386121,1722089447392,-1230.051893,0.00013752,2]
[333386123,1722089447401,-151.0,0.00013752,2]
[333386125,1722089447412,-192.778072,0.00013752,2]
[333386126,1722089447422,-192.778072,0.00013752,2]
[333386128,1722089447431,-252.417658,0.00013752,2]
[333386130,1722089447440,-252.417658,0.00013752,2]
[333386132,1722089447451,-246.956328,0.0001378,2]
[333386133,1722089447460,-204.86939,0.0001378,2]
[333386135,1722089447471,-151.0,0.00013796,2]
[333386137,1722089447481,-603.7632021,0.00013832,2]
[333386139,1722089447490,-500.0,0.00013841,2]
[333386141,1722089447500,-151.0,0.00013842,2]
[333386143,1722089447511,-151.063963,0.00013842,2]
[333386145,1722089447523,-188.301598,0.00013842,2]
[333386147,1722089447532,-151.0,0.00013842,2]
[333386149,1722089447542,-188.0,0.00013842,2]
[333386151,1722089447552,-188.867999,0.00013842,2]
[333386153,1722089447561,-388.751951,0.00013842,2]
[333386155,1722089447570,-388.751951,0.00013842,2]
[333386157,1722089447580,-522.198983,0.00013842,2]
[333386159,1722089447589,-522.198983,0.00013842,2]
[333386161,1722089447599,-153.825328,0.00013852,2]
[333386163,1722089447608,-153.825328,0.00013852,2]
[333386165,1722089447618,-151.0,0.00013852,2]
[333386167,1722089447627,-151.667555,0.00013852,2]
[333386169,1722089447637,-151.0,0.00013852,2]
[333386171,1722089447646,-403.84351148,0.00013861,2]
[333386173,1722089447655,-226.084037,0.00013862,2]
[333386175,1722089447665,-151.0,0.00013862,2]
[333386177,1722089447674,-151.0,0.00013872,2]
[333386179,1722089447684,-200.0,0.00013872,2]
[333386181,1722089447694,-151.0,0.00013889,2]
[333386183,1722089447703,-151.0,0.00013889,2]
[333386184,1722089447713,-388.751951,0.00013889,2]
[333386185,1722089447722,-388.751951,0.00013889,2]
[333386186,1722089447733,-522.198983,0.00013889,2]
[333386187,1722089447743,-522.198983,0.00013889,2]
[333386188,1722089447752,-153.825328,0.00013889,2]
[333386189,1722089447764,-153.825328,0.00013889,2]
[333386190,1722089447774,-151.0,0.00013889,2]
[333386191,1722089447784,-25893.51586338,0.00013899,2]
[333386192,1722089447796,-854.923058,0.00013899,2]
[333386193,1722089447805,-854.923058,0.00013899,2]
[333386194,1722089447815,-252.239917,0.00013899,2]
[333386195,1722089447825,-252.239917,0.00013899,2]
[333386196,1722089447835,-211.516715,0.00013899,2]
[333386197,1722089447845,-211.516715,0.00013899,2]
[333386198,1722089447856,-151.0,0.00013899,2]
[333386199,1722089447866,-272.02683,0.00013899,2]
[333386200,1722089447875,-272.02683,0.00013899,2]
[333386201,1722089447885,-151.0,0.00013899,2]
[333386202,1722089447895,-150.112233,0.000139,2]
[333386203,1722089447905,-151.0,0.00013952,2]
[333386204,1722089447914,-151.0,0.00013952,2]
[333386205,1722089447924,-6853.7784363,0.00013962,2]
[333386206,1722089447934,-15200.77870309,0.00013972,5]
[333386207,1722089447944,-501.82093202,0.00013972,2]
[333386208,1722089447954,-500.0,0.00013972,2]
[333386209,1722089447964,-525.34,0.00013972,2]
[333386210,1722089447974,-545.02767701,0.00013972,2]
[333386211,1722089447984,-759.72,0.00013972,2]
[333386212,1722089447995,-500.0,0.00013972,2]
[333386213,1722089448007,-208.48,0.00013972,2]
[333386214,1722089448017,-883.29,0.00013972,2]
[333386215,1722089448027,-500.0,0.00013972,2]
[333386216,1722089448039,-151.0,0.00013972,2]
[333386217,1722089448050,-151.0,0.00013972,2]
[333386218,1722089448060,-500.0,0.00013972,2]
[333386219,1722089448071,-500.0,0.00013972,2]
[333386220,1722089448081,-500.0,0.00013972,2]
[333386221,1722089448091,-151.0,0.00013972,2]
[333386222,1722089448100,-151.0,0.00013972,2]
[333386223,1722089448111,-516.06,0.00013972,2]
[333386224,1722089448121,-574.78,0.00013972,2]
[333386225,1722089448132,-388.751951,0.00013972,2]
[333386226,1722089448142,-388.751951,0.00013972,2]
[333386227,1722089448153,-388.751951,0.00013972,2]
[333386228,1722089448163,-388.751951,0.00013972,2]
[333386229,1722089448174,-500.0,0.00013972,2]
[333386230,1722089448185,-522.198983,0.00013972,2]
[333386231,1722089448195,-522.198983,0.00013972,2]
[333386232,1722089448205,-522.198983,0.00013972,2]
[333386233,1722089448216,-522.198983,0.00013972,2]
[333386234,1722089448226,-500.0,0.00013972,2]
[333386235,1722089448238,-500.0,0.00013972,2]
[333386236,1722089448248,-677.47,0.00013972,2]
[333386237,1722089448260,-541.91,0.00013972,2]
[333386238,1722089448272,-153.825328,0.00013972,2]
[333386239,1722089448283,-153.825328,0.00013972,2]
[333386240,1722089448293,-153.825328,0.00013972,2]
[333386241,1722089448304,-153.825328,0.00013972,2]
[333386242,1722089448314,-690.45,0.00013972,2]
[333386243,1722089448323,-827.66,0.00013972,2]
[333386244,1722089448334,-500.0,0.00013972,2]
[333386245,1722089448344,-500.0,0.00013972,2]
[333386246,1722089448354,-500.0,0.00013972,2]
[333386247,1722089448364,-151.0,0.00013972,2]
[333386248,1722089448374,-151.0,0.00013972,2]
[333386249,1722089448384,-500.0,0.00013972,2]
[333386250,1722089448394,-500.0,0.00013972,2]
[333386251,1722089448405,-500.0,0.00013972,2]
[333386252,1722089448415,-500.0,0.00013972,2]
[333386253,1722089448425,-754.63,0.00013972,2]
[333386254,1722089448435,-151.0,0.00013972,2]
[333386255,1722089448445,-151.0,0.00013972,2]
[333386256,1722089448455,-500.0,0.00013972,2]
[333386257,1722089448466,-151.0,0.00013972,2]
[333386258,1722089448476,-151.0,0.00013972,2]
[333386259,1722089448486,-593.31725,0.00013972,2]
[333386260,1722089448496,-593.31725,0.00013972,2]
[333386261,1722089448507,-500.0,0.00013972,2]
[333386262,1722089448516,-151.0,0.00013972,2]
[333386263,1722089448526,-151.0,0.00013972,2]
[333386264,1722089448535,-1230.051893,0.00013972,2]
[333386265,1722089448545,-1230.051893,0.00013972,2]
[333386266,1722089448555,-1230.051893,0.00013972,2]
[333386267,1722089448566,-1230.051893,0.00013972,2]
[333386268,1722089448576,-151.0,0.00013972,2]
[333386269,1722089448586,-151.0,0.00013972,2]
[333386270,1722089448597,-192.778072,0.00013972,2]
[333386271,1722089448607,-192.778072,0.00013972,2]
[333386272,1722089448617,-192.778072,0.00013972,2]
[333386273,1722089448627,-192.778072,0.00013972,2]
[333386274,1722089448636,-252.417658,0.00013972,2]
[333386275,1722089448647,-252.417658,0.00013972,2]
[333386276,1722089448657,-252.417658,0.00013972,2]
[333386277,1722089448667,-252.417658,0.00013972,2]
[333386278,1722089448676,-500.0,0.00013972,2]
[333386279,1722089448686,-916.677967,0.00013972,2]
[333386280,1722089448696,-916.677967,0.00013972,2]
[333386281,1722089448705,-916.677967,0.00013972,2]
[333386282,1722089448715,-916.677967,0.00013972,2]
[333386283,1722089448725,-916.22,0.00013972,2]
[333386284,1722089448734,-730.73,0.00013972,2]
[333386285,1722089448744,-500.0,0.00013972,2]
[333386286,1722089448755,-756.9,0.00013972,2]
[333386287,1722089448766,-500.0,0.00013972,2]
[333386288,1722089448775,-500.0,0.00013972,2]
[333386289,1722089448785,-500.0,0.00013972,2]
[333386290,1722089448796,-3522.35,0.00013972,2]
[333386291,1722089448805,-500.0,0.00013972,2]
[333386292,1722089448815,-1541.2,0.00013972,2]
[333386293,1722089448825,-500.0,0.00013972,2]
[333386294,1722089448835,-500.0,0.00013972,2]
[333386295,1722089448845,-500.0,0.00013972,2]
[333386296,1722089448855,-369.5579083,0.00013972,2]
[333386297,1722089448864,-500.0,0.00013972,2]
[333386298,1722089448875,-500.0,0.00013972,2]
[333386299,1722089448885,-1181.54,0.00013972,2]
[333386300,1722089448895,-500.0,0.00013972,2]
[333386301,1722089448905,-500.0,0.00013972,2]
[333386302,1722089448915,-6679.63,0.00013972,2]
[333386303,1722089448925,-500.0,0.00013972,2]
[333386304,1722089448935,-500.0,0.00013972,2]
[333386305,1722089448945,-931.58,0.00013972,2]
[333386306,1722089448955,-500.0,0.00013972,2]
[333386307,1722089448964,-2709.73,0.00013972,2]
[333386308,1722089448974,-597.27,0.00013972,2]
[333386309,1722089448984,-500.0,0.00013972,2]
[333386310,1722089448993,-1834.98,0.00013972,2]
[333386311,1722089449003,-500.0,0.00013972,2]
[333386312,1722089449015,-1170.68,0.00013972,2]
[333386313,1722089449024,-492.46075562,0.00013972,2]
[333386314,1722089449034,-604.31,0.00013972,2]
[333386315,1722089449044,-854.923058,0.00013972,2]
[333386316,1722089449054,-854.923058,0.00013972,2]
[333386317,1722089449064,-1120.04,0.00013972,2]
[333386318,1722089449074,-693.26,0.00013972,2]
[333386319,1722089449085,-500.0,0.00013972,2]
[333386320,1722089449095,-500.0,0.00013972,2]
[333386321,1722089449105,-620.738382,0.00013972,2]
[333386322,1722089449116,-500.0,0.00013972,2]
[333386323,1722089449126,-620.738382,0.00013972,2]
[333386324,1722089449136,-500.0,0.00013972,2]
[333386325,1722089449147,-620.738382,0.00013972,2]
[333386326,1722089449157,-620.738382,0.00013972,2]
[333386327,1722089449167,-1306.82,0.00013972,2]
[333386328,1722089449182,-77.57904663,0.00013972,2]
[333386329,1722089449216,-312.23166665,0.00013972,2]
[333386330,1722089452872,273.37336231,9.9e-05,2]
[333386331,1722089460091,189.73840327,0.0001,2]
[333386332,1722089492912,200.0,0.0001,2]
[333386333,1722089518051,904.72890543,9.999e-05,2]
[333386336,1722089522407,542.61757791,9.999e-05,2]
[333386337,1722089529066,203.67656339,9.999e-05,2]
[333386338,1722089531369,157.67039442,9.999e-05,2]
[333386339,1722089534998,3782.59755445,0.0001,2]
[333386341,1722089544498,8340.67773172,0.0001,2]
[333386342,1722089546293,286.93637188,9.999e-05,2]
[333386343,1722089549520,202.33959701,9.999e-05,2]
[333386360,1722090349122,-250.0,0.00010727,2]
[333386361,1722090349145,-170.402136,0.00010959,2]
[333386362,1722090349169,-300.0,0.00011109,2]
[333386363,1722090349191,-175.87935505,0.00011109,2]
[333386364,1722090435140,-269.97115307,0.00011109,2]
[333386365,1722090438096,-30.02884693,0.00011109,2]
[333386366,1722090438120,-300.0,0.00011109,2]
[333386367,1722090438145,-543.34723567,0.0001111,2]
[333386368,1722090444101,-925.957722,0.0001111,2]
[333386369,1722090453103,-546.74672462,0.0001111,2]
[333386378,1722090557117,-250.0,0.00011002,2]
[333386379,1722090557143,-250.0,0.00011033,2]
[333386380,1722090557168,-250.0,0.00011063,2]
[333386381,1722090557193,-250.0,0.00011093,2]
[333386382,1722090557217,-45.70250551,0.00011123,2]
[333386385,1722090563126,-254.29749449,0.00011123,2]
[333386386,1722090563152,-300.0,0.00011123,2]
[333386387,1722090563178,-250.0,0.00011123,2]
[333386388,1722090563202,-24900.0,0.00011124,2]
[333386389,1722090563226,-98.21031822,0.00011153,2]
[333386390,1722090569105,-151.78968178,0.00011153,2]
[333386391,1722090569129,-250.0,0.00011183,2]
[333386392,1722090569150,-920.058329,0.00011206,2]
[333386393,1722090569173,-250.0,0.00011214,2]
[333386394,1722090569198,-250.0,0.00011244,2]